Workbook

Sheet 5 yr budget blank
A1: PI: | D1: TYPE ONLY IN BLUE HIGHLIGHTED AREAS, otherwise you will erase formulas
A2: Proposal Sponsor | F2: If you erase formulas, Diane will assist you, 852-2803 | N2: IF needing Cost Share Calculated due to NIH Max Salary ( as of 1-1-18 for NIH Max Salary for 9 mo. appt is $142,200)
A3: Due Date: | F3: Salaries increased by 3% each year | N3: contact A&S Research Office
A4: SPONSOR REQUESTED FUNDS | F4: Key in dates In blue box under Year , they will link to all other cells on spreadsheet: | N4: COST SHARE FUNDS
A5: Type in names will also carry down to Fringes | F5: Year 1 | G5: Year 2 | H5: Year 3 | I5: Year 4 | J5: Year 5 | L5: Totals | S5: Year 1 | T5: Year 2 | U5: Year 3 | V5: Year 4 | W5: Year 5 | Y5: Totals
A6: Salaries | B6: Base Salary | C6: % | D6: # of months | E6: Person Months | N6: COST Share SALARY | O6: Base Salary | P6: % | Q6: # of months | R6: Person Months | S6: =F6 -> 00:00:00 | T6: =G6 -> 00:00:00 | U6: 00:00:00 | V6: 00:00:00 | W6: 00:00:00
A7: PI AY | E7: =D7*C7 -> 0.00 | F7: =ROUND((C7*B7),0) -> 0 | G7: =ROUND((F7*1.03),0) -> 0 | H7: 0 | I7: 0 | J7: 0 | L7: =SUM(F7:J7) -> 0 | N7: =A7 -> PI AY | R7: =Q7*P7 -> 0.00 | S7: =ROUND((P7*O7),0) -> 0 | T7: =ROUND((S7*1.03),0) -> 0 | U7: =ROUND((T7*1.03),0) -> 0 | V7: =ROUND((U7*1.03),0) -> 0 | W7: =ROUND((V7*1.03),0) -> 0
A8: PI Summer | B8: =B7/9 -> 0 | E8: =D8*C8 -> 0.00 | F8: =ROUND((C8*B8*D8),0) -> 0 | G8: =ROUND((F8*1.03),0) -> 0 | H8: =ROUND((G8*1.03),0) -> 0 | I8: =ROUND((H8*1.03),0) -> 0 | J8: =ROUND((I8*1.03),0) -> 0 | L8: 0 | R8: =Q8*P8 -> 0.00 | S8: =ROUND((P8*O8),0) -> 0 | T8: =ROUND((S8*1.03),0) -> 0 | U8: =ROUND((T8*1.03),0) -> 0 | V8: =ROUND((U8*1.03),0) -> 0 | W8: =ROUND((V8*1.03),0) -> 0
A9: Co-I AY | E9: 0.00 | F9: =ROUND((C9*B9),0) -> 0 | G9: 0 | H9: 0 | I9: 0 | J9: 0 | L9: 0 | N9: =A9 -> Co-I AY | R9: 0.00 | S9: 0 | T9: 0 | U9: 0 | V9: 0 | W9: 0
A10: Co-I Summer | B10: =B9/9 -> 0 | E10: 0.00 | F10: =ROUND((C10*B10*D10),0) -> 0 | G10: =ROUND((F10*1.03),0) -> 0 | H10: =ROUND((G10*1.03),0) -> 0 | I10: =ROUND((H10*1.03),0) -> 0 | J10: =ROUND((I10*1.03),0) -> 0 | L10: 0 | R10: 0.00 | S10: 0 | T10: 0 | U10: 0 | V10: 0 | W10: 0
E11: 0.00 | F11: 0 | G11: 0 | H11: 0 | I11: 0 | J11: 0 | L11: 0 | R11: 0.00 | S11: 0 | T11: 0 | U11: 0 | V11: 0 | W11: 0
E12: 0.00 | F12: 0 | G12: 0 | H12: 0 | I12: 0 | J12: 0 | L12: 0 | R12: 0.00 | S12: 0 | T12: 0 | U12: 0 | V12: 0 | W12: 0
A13: Graduate Student | E13: 0.00 | F13: 0 | G13: 0 | H13: 0 | I13: 0 | J13: 0 | L13: 0 | R13: 0.00 | S13: =ROUND((P13*O13),0) -> 0 | T13: =ROUND((S13*1.03),0) -> 0 | U13: =ROUND((T13*1.03),0) -> 0 | V13: =ROUND((U13*1.03),0) -> 0 | W13: =ROUND((V13*1.03),0) -> 0
A14: Graduate Student | E14: 0.00 | F14: 0 | G14: 0 | H14: 0 | I14: 0 | J14: 0 | L14: 0 | R14: 0.00 | S14: 0 | T14: 0 | U14: 0 | V14: 0 | W14: 0
A15: TOTAL SALARIES | F15: =ROUND(SUM(F7:F14),0) -> 0 | G15: =ROUND(SUM(G7:G14),0) -> 0 | H15: 0 | I15: 0 | J15: 0 | L15: =ROUND((SUM(F15:J15)),0) -> 0 | S15: =ROUND(SUM(S7:S14),0) -> 0 | T15: =ROUND(SUM(T7:T14),0) -> 0 | U15: 0 | V15: 0 | W15: 0 | Y15: =ROUND(SUM(S15:W15),) -> 0
A17: FRINGES (see Fringe info below) | N17: COST SHARE FRINGES
A18: =A7 -> PI AY | F18: =ROUND((F7*$C$18),0) -> 0 | G18: =ROUND((G7*$C$18),0) -> 0 | H18: 0 | I18: 0 | J18: 0 | L18: =ROUND(SUM(F18:J18),0) -> 0 | N18: =N7 -> PI AY | P18: 0.00% | S18: =ROUND((S7*$P$18),0) -> 0 | T18: =ROUND((T7*$P$18),0) -> 0 | U18: 0 | V18: 0 | W18: 0 | Y18: =ROUND(SUM(S18:W18),0) -> 0
A19: PI Summer | F19: =ROUND((F8*$C$19),0) -> 0 | G19: =ROUND((G8*$C$19),0) -> 0 | H19: 0 | I19: 0 | J19: 0 | L19: =ROUND(SUM(F19:J19),0) -> 0 | N19: =N8 -> 0 | S19: =ROUND((S8*$P$19),0) -> 0 | T19: =ROUND((T8*$P$19),0) -> 0 | U19: 0 | V19: 0 | W19: 0 | Y19: =ROUND(SUM(S19:W19),0) -> 0
A20: =A9 -> Co-I AY | F20: =ROUND((F9*$C$20),0) -> 0 | G20: =ROUND((G9*$C$20),0) -> 0 | H20: 0 | I20: 0 | J20: 0 | L20: =ROUND(SUM(F20:J20),0) -> 0 | N20: Co-I AY | S20: =ROUND((S9*$P$20),0) -> 0 | T20: =ROUND((T9*$P$20),0) -> 0 | U20: 0 | V20: 0 | W20: 0 | Y20: 0
A21: =A10 -> Co-I Summer | F21: =ROUND((F10*$C$21),0) -> 0 | G21: =ROUND((G10*$C$21),0) -> 0 | H21: 0 | I21: 0 | J21: 0 | L21: 0 | N21: 0 | S21: =ROUND((S10*$P$21),0) -> 0 | T21: =ROUND((T10*$P$21),0) -> 0 | U21: 0 | V21: 0 | W21: 0 | Y21: 0
A22: 0 | F22: =ROUND((F11*$C$22),0) -> 0 | G22: =ROUND((G11*$C$22),0) -> 0 | H22: 0 | I22: 0 | J22: 0 | L22: 0 | N22: 0 | S22: =ROUND((S11*$P$22),0) -> 0 | T22: =ROUND((T11*$P$22),0) -> 0 | U22: 0 | V22: 0 | W22: 0 | Y22: 0
A23: 0 | F23: =ROUND((F12*$C$23),0) -> 0 | G23: =ROUND((G12*$C$23),0) -> 0 | H23: 0 | I23: 0 | J23: 0 | L23: 0 | N23: 0 | S23: =ROUND((S12*$P$23),0) -> 0 | T23: =ROUND((T12*$P$23),0) -> 0 | U23: 0 | V23: 0 | W23: 0 | Y23: 0
A24: Graduate Student | G24: =ROUND(F24*1.05,0) -> 0 | H24: =ROUND(G24*1.05,0) -> 0 | I24: 0 | J24: 0 | L24: 0 | N24: 0 | S24: =ROUND((S13*$P$24),0) -> 0 | T24: =ROUND((T13*$P$24),0) -> 0 | U24: 0 | V24: 0 | W24: 0 | Y24: 0
A25: =A14 -> Graduate Student | G25: =ROUND(F25*1.05,0) -> 0 | H25: 0 | I25: 0 | J25: 0 | L25: 0 | N25: 0 | S25: =ROUND((S14*$P$25),0) -> 0 | T25: =ROUND((T14*$P$25),0) -> 0 | U25: 0 | V25: 0 | W25: 0 | Y25: 0
A26: Note: FY18 Insurance is $227.17/mo $2726 | F26: =ROUND(SUM(F18:F25),) -> 0 | G26: =ROUND(SUM(G18:G25),) -> 0 | H26: 0 | I26: 0 | J26: 0 | L26: =ROUND(SUM(F26:J26),) -> 0 | S26: =ROUND(SUM(S18:S25),) -> 0 | T26: =ROUND(SUM(T18:T25),) -> 0 | U26: 0 | V26: 0 | W26: 0 | Y26: =ROUND(SUM(S26:W26),) -> 0
A27: For Grad Insurance key in Year 1 and formulas will increase by 5% each of years 2-5
A28: Fringe Information:
A29: Salary, faculty and full time staff 28.5%
A30: Temp workers 7.65%
A31: Postdoc 39%
B32: TOTALS SAL & FRINGES | F32: =ROUND((F15+F26),0) -> 0 | G32: =ROUND((G15+G26),0) -> 0 | H32: 0 | I32: 0 | J32: 0 | L32: =ROUND(SUM(F32:J32),0) -> 0
A34: Equipment | B34: Unit Cost Greater than $5000
F38: =ROUND(SUM(F35:F37),0) -> 0 | G38: =ROUND(SUM(G35:G37),0) -> 0 | H38: 0 | I38: 0 | J38: 0 | K38: =SUM(K37) -> 0 | L38: =ROUND(SUM(F38:J38),0) -> 0
A40: Supplies & Expenses
L41: =ROUND(SUM(F41:J41),0) -> 0
L42: =ROUND(SUM(F42:J42),0) -> 0
L43: 0
L44: 0
L45: 0
L46: 0
L47: 0
L48: 0
L49: 0
L50: 0
B51: Total Supplies & Expenses | F51: =ROUND(SUM(F41:F50),0) -> 0 | G51: =ROUND(SUM(G41:G50),0) -> 0 | H51: 0 | I51: 0 | J51: 0 | L51: =ROUND(SUM(F51:J51),0) -> 0
A52: Subcontractors
L53: =SUM(F53:K53) -> 0
L54: =SUM(F54:K54) -> 0
L55: =SUM(F55:K55) -> 0
L56: =ROUNDDOWN((SUM(F56:K56)),0) -> 0
C57: Subcontract Directs | F57: =ROUND(SUM(F53:F56),0) -> 0 | G57: =ROUND(SUM(G53:G56),0) -> 0 | H57: 0 | I57: 0 | J57: 0 | L57: =ROUND(SUM(F57:J57),0) -> 0
L58: =ROUND(SUM(F58:J58),0) -> 0
L59: =ROUND(SUM(F59:J59),0) -> 0
L60: 0
L61: 0
A62: First $25,000 of each subgrant pays F&A | C62: Subcontract indirects | F62: =ROUND(SUM(F58:F61),0) -> 0 | G62: =ROUND(SUM(G58:G61),0) -> 0 | H62: 0 | I62: 0 | J62: 0 | L62: =ROUND(SUM(F62:J62),0) -> 0
K63: =SUM(F64:J64) -> 0
B64: TOTAL Subcontractors | F64: =ROUND(F62+F57,0) -> 0 | G64: =ROUND(G62+G57,0) -> 0 | H64: 0 | I64: 0 | J64: 0 | K64: 0 | L64: =ROUND(SUM(F64:J64),0) -> 0
A66: Travel | B66: Justification must state how travel expenses benefit this specific project
B71: Total Travel | F71: =ROUND(SUM(F67:F70),0) -> 0 | G71: =ROUND(SUM(G67:G70),0) -> 0 | H71: 0 | I71: 0 | J71: 0 | L71: =ROUND(SUM(F71:J71),0) -> 0
A73: Grad Student Tuition | B73: Key in YEAR 1, years 2-5 will increase by 5% each year
A74: Grad student 1 | F74: 0 | G74: =ROUND((F74*1.05),0) -> 0 | H74: =ROUND((G74*1.05),0) -> 0 | I74: 0 | J74: 0 | L74: =ROUND(SUM(F74:J74),0) -> 0
A75: Grad student 2 | F75: 0 | G75: =ROUND((F75*1.05),0) -> 0 | H75: 0 | I75: 0 | J75: 0 | L75: =ROUND(SUM(F75:J75),0) -> 0
L76: 0
B77: Total Tuition | F77: =ROUND(SUM(F74:F76),0) -> 0 | G77: =ROUND(SUM(G74:G76),0) -> 0 | H77: 0 | I77: 0 | J77: 0 | L77: =ROUND(SUM(F77:J77),0) -> 0
A78: FY18 Resident $16,332
A79: FY18 Doc Candidacy $4,086
A81: Detailed Budget Totals: | F81: =F6 -> 0 | G81: =G6 -> 0 | H81: =H6 -> 0 | I81: =I6 -> 0 | J81: =J6 -> 0 | O81: COST SHARE TOTALS | S81: =S6 -> 00:00:00 | T81: =T6 -> 00:00:00 | U81: =U6 -> 00:00:00 | V81: =V6 -> 00:00:00 | W81: =W6 -> 00:00:00
A82: Salary Total | F82: =ROUND((F15),0) -> 0 | G82: =ROUND((G15),0) -> 0 | H82: 0 | I82: 0 | J82: 0 | L82: =ROUND((SUM(F82:J82)),0) -> 0 | O82: Salary Total | S82: =ROUND((S15),0) -> 0 | T82: =ROUND((T15),0) -> 0 | U82: 0 | V82: 0 | W82: 0 | Y82: =ROUND((SUM(S82:W82)),0) -> 0
A83: Fringes Total | F83: =ROUND((F26),0) -> 0 | G83: =ROUND((G26),0) -> 0 | H83: 0 | I83: 0 | J83: 0 | L83: =ROUND((SUM(F83:J83)),0) -> 0 | O83: Fringes Total | S83: =ROUND((S26),0) -> 0 | T83: =ROUND((T26),0) -> 0 | U83: 0 | V83: 0 | W83: 0 | Y83: =ROUND((SUM(S83:W83)),0) -> 0
A84: Equipment Total >$5000 | F84: =ROUND((F38),0) -> 0 | G84: =ROUND((G38),0) -> 0 | H84: 0 | I84: 0 | J84: 0 | L84: 0
A85: Supplies & Expenses Total | F85: =ROUND((F51),0) -> 0 | G85: =ROUND((G51),0) -> 0 | H85: 0 | I85: 0 | J85: 0 | L85: 0
A86: Travel Total | F86: =ROUND((F71),0) -> 0 | G86: =ROUND((G71),0) -> 0 | H86: 0 | I86: 0 | J86: 0 | L86: 0
A87: Subcontractor Directs | F87: =ROUND(F57,0) -> 0 | G87: =ROUND(G57,0) -> 0 | H87: 0 | I87: 0 | J87: 0 | K87: =K63 -> 0 | L87: 0
A88: Grad Student Tuition | F88: =ROUND((F77),0) -> 0 | G88: =ROUND((G77),0) -> 0 | H88: 0 | I88: 0 | J88: 0 | L88: 0
A89: SubTOTAL DIRECTS per year | F89: =ROUND(SUM(F82:F88),0) -> 0 | G89: =ROUND(SUM(G82:G88),0) -> 0 | H89: 0 | I89: 0 | J89: 0 | L89: 0
A90: Subcontractor Indirects | F90: =ROUND((F62),0) -> 0 | G90: =ROUND((G62),0) -> 0 | H90: 0 | I90: 0 | J90: 0 | L90: 0
A91: GRAND TOTAL DIRECTS | F91: =ROUND((F89+F90),0) -> 0 | G91: =ROUND((G89+G90),0) -> 0 | H91: 0 | I91: 0 | J91: 0 | L91: =ROUND(SUM(F91:J91),0) -> 0 | N91: . | S91: =SUM(S82:S90) -> 0 | T91: =SUM(T82:T90) -> 0 | U91: 0 | V91: 0 | W91: 0 | Y91: =SUM(S91:W91) -> 0
A92: F&A Exclusions Equip & Tuition | F92: =ROUND((F84+F88),0) -> 0 | G92: =ROUND((G84+G88),0) -> 0 | H92: 0 | I92: 0 | J92: 0
A93: F&A Exclusion for Subgrants, Each sub > $25k see note below | F93: 0 | G93: 0 | H93: 0 | I93: 0 | J93: 0
A94: Total for F&A calculation | F94: =ROUND((F91-F92-F93),0) -> 0 | G94: =ROUND((G91-G92-G93),0) -> 0 | H94: 0 | I94: 0 | J94: 0 | L94: =ROUND(SUM(F94:J94),0) -> 0
A95: F&A @ % | B95: F&A RATE | C95: 0% | F95: =ROUND(($C$95*F94),0) -> 0 | G95: =ROUND(($C$95*G94),0) -> 0 | H95: 0 | I95: 0 | J95: 0 | K95: =0.47*K94 -> 0 | L95: =SUM(F95:J95) -> 0
A97: Total Requested | F97: =F91+F95 -> 0 | G97: =G91+G95 -> 0 | H97: =H91+H95 -> 0 | I97: =I91+I95 -> 0 | J97: =J91+J95 -> 0 | L97: =ROUND(SUM(F97:J97),0) -> 0
A99: To Convert budget into Modular Budget:
A100: Key in Modular amount requested: | F100: 0 | G100: 0 | H100: 0 | I100: 0 | J100: 0 | K100: =SUM(B100:J100) -> 0 | L100: =SUM(F100:J100) -> 0
A101: F&A Exempt | F101: =F92 -> 0 | G101: =G92 -> 0 | H101: =H92 -> 0 | I101: =I92 -> 0 | J101: =J92 -> 0 | L101: =SUM(F101:J101) -> 0
A102: Total | F102: =F100-F101 -> 0 | G102: =G100-G101 -> 0 | H102: =H100-H101 -> 0 | I102: =I100-I101 -> 0 | J102: =J100-J101 -> 0 | L102: =SUM(F102:J102) -> 0
A103: F&A @ 48% | F103: =0.48*F102 -> 0 | G103: =0.48*G102 -> 0 | H103: =0.48*H102 -> 0 | I103: =0.48*I102 -> 0 | J103: =0.48*J102 -> 0 | K103: =SUM(B103:I103) -> 0 | L103: =SUM(F103:J103) -> 0
A104: Total Requested | F104: =F103+F100 -> 0 | G104: =G103+G100 -> 0 | H104: =H103+H100 -> 0 | I104: =I103+I100 -> 0 | J104: =J103+J100 -> 0 | K104: =SUM(K100:K103) -> 0 | L104: =SUM(F104:J104) -> 0
A107: TUITION CALCULATION TO COMPENSATE FOR TOTAL AMOUNT ALLOWED FOR GRADUATE STUDENT EXPENSES ON
A108: AN NIH GRANT:
A109: AS OF fy05 MAXIMUM ALLOWED IS $35,568 | F109: $35,568 | G109: =1.03*F109 -> $36,635 | H109: =1.03*G109 -> $37,734 | I109: =1.03*H109 -> $38,866 | J109: =1.03*I109 -> $40,032
A110: Note: FY05-06 instate $8010 | B110: KEY IN YR 1
A111: FY05-06 out of state $22074
A113: Out of State tuition | B113: Key in Yr 1 | F113: $22,074 | G113: =1.03*F113 -> $22,736 | H113: $23,418 | I113: $24,121 | J113: $24,844
A114: Total Stipend and Insurance per GRA | F114: =F24+F13 -> 0 | G114: 0 | H114: 0 | I114: 0 | J114: 0
A115: Total COSTS of Grad Student Out of State | F115: $43,406 | G115: $44,708 | H115: $46,049 | I115: $47,431 | J115: $48,854
A118: Total Tuition cost shared by VPR office: | F118: =F115-F109 -> $7,838 | G118: =G115-G109 -> $8,073 | H118: =H115-H109 -> $8,315 | I118: =I115-I109 -> $8,565 | J118: =J115-J109 -> $8,822
A119: Total Tuition to be charged to grant: | F119: =F113-F118 -> $14,236 | G119: =G113-G118 -> $14,663 | H119: =H113-H118 -> $15,103 | I119: =I113-I118 -> $15,556 | J119: =J113-J118 -> $16,023
A120: Key in tuition figure for ea. Out of state student
A121: F&A EXCLUSION FOR SUBGRANTS
A122: Amount for exclusion will need to be typed in
A123: for each year
F125: FROM SPONSOR | H125: COST SHARE
A126: Proposal Clearance Form TOTALS | F126: Agency Requested | H126: CS | I126: Speed type(s)
B127: Salary & Wages | F127: =ROUND((L82),0) -> 0 | H127: =ROUND((Y82),0) -> 0
B128: Fringe Benefits | F128: =ROUND((L83),0) -> 0 | H128: =ROUND((Y83),0) -> 0
B129: Equipment>$5000 per item | F129: =ROUND((L84),0) -> 0
B130: Subcontracts | F130: =ROUND((L87+L90),0) -> 0
B131: Supplies and Expenses | F131: =ROUND((L85),0) -> 0
B132: Travel | F132: =ROUND((L86),0) -> 0
B133: Tuition | F133: =ROUND((L88),0) -> 0
B134: TOTAL Direct Costs | F134: =ROUND(SUM(F127:F133),0) -> 0 | H134: =ROUND(SUM(H127:H133),0) -> 0
B135: F&A | C135: =C95 -> 0% | F135: =ROUND((L95),0) -> 0
B136: TOTAL Costs | F136: =ROUND((F135+F134),0) -> 0 | H136: =ROUND(SUM(H134:H135),0) -> 0
A137: created by Diane Penrod
